fUSD/lending_fUSD_20240905
["ID","MTS","AMOUNT","RATE_DAILY","PERIOD"]
[337228862,1725513042915,-1919.52883686,0.00015,2]
[337228863,1725513042926,-1234.72913179,0.00015,2]
[337228864,1725513042974,-446.58189285,0.00015,2]
[337228865,1725513043387,-463.29586362,0.00015,2]
[337228867,1725513043398,-275.18000013,0.00015,2]
[337228868,1725513043412,-610993.48090481,0.00015,2]
[337228869,1725513043425,-940.096497,0.00015,2]
[337228870,1725513043436,-7411.98656928,0.00015,2]
[337228871,1725513043449,-6246.50973598,0.00015,2]
[337228872,1725513043462,-3664.0000002,0.00015,2]
[337228873,1725513045919,-20944.7951398,0.00015,2]
[337228874,1725513045980,-1367.99179144,0.00015,2]
[337228875,1725513045991,-276.345,0.00015,2]
[337228876,1725513046003,-313.06330969,0.00015,2]
[337228877,1725513046013,-573.27155235,0.00015,2]
[337228878,1725513046094,-1140.2112,0.00015,2]
[337228879,1725513046354,-580.59172386,0.00015,2]
[337228880,1725513046366,-2777.09675938,0.00015,2]
[337228881,1725513046377,-3854.16700004,0.00015,2]
[337228882,1725513046387,-1058.70623904,0.00015,2]
[337228883,1725513046398,-5886.8478948,0.00015,2]
[337228884,1725513132458,255.0,0.00027,120]
[337228889,1725513214318,500.0,0.00026,120]
[337228890,1725513229292,409.92,0.00013878,2]
[337228891,1725513275205,170.65,0.00013869,2]
[337228892,1725513285418,1969.43,0.00013869,2]
[337228894,1725513489111,545.17,0.00011286,2]
[337228895,1725513656523,-250.0,0.0001314,2]
[337228896,1725513656544,-692.47,0.00013193,2]
[337228897,1725513656565,-250.0,0.00013253,2]
[337228898,1725513656585,-545.17,0.0001355,2]
[337228899,1725513656605,-3012.36,0.000136,2]
[337228900,1725513682102,-1150.0,0.000136,2]
[337228901,1725513977138,522.01,0.00011181,2]
[337228902,1725514106688,152.1,0.00010959,2]
[337228903,1725514114637,1013.25742247,0.00010998,2]
[337228916,1725514231967,-1100.0,0.00013004,2]
[337228917,1725514231976,-250.0,0.0001311,2]
[337228918,1725514231986,-346.23,0.00013127,2]
[337228919,1725514231995,-250.0,0.00013131,2]
[337228920,1725514232004,-250.0,0.00013148,2]
[337228921,1725514232013,-1500.0,0.00013203,2]
[337228922,1725514232023,-672.06,0.00013205,2]
[337228923,1725514232032,-9316.34,0.00013209,2]
[337228924,1725514232041,-522.01,0.00013445,2]
[337228925,1725514232051,-4268.85791389,0.000136,2]
[337228926,1725514232061,-1067.79,0.00013701,2]
[337228927,1725514232070,-322.54,0.00013701,2]
[337228928,1725514232079,-499.99,0.00013701,2]
[337228929,1725514232088,-1067.79,0.00013705,2]
[337228930,1725514232097,-1067.79,0.00013708,2]
[337228931,1725514232106,-1067.79,0.00013712,2]
[337228932,1725514232116,-1067.79,0.00013716,2]
[337228933,1725514232126,-1067.79,0.00013719,2]
[337228934,1725514232136,-1067.79,0.00013723,2]
[337228935,1725514232145,-1067.79,0.00013726,2]
[337228936,1725514232154,-186.66,0.00013727,2]
[337228937,1725514232163,-1067.79,0.0001373,2]
[337228938,1725514232172,-1067.79,0.00013734,2]
[337228939,1725514232182,-1067.79,0.00013737,2]
[337228940,1725514232191,-178.72,0.00013741,2]
[337228941,1725514232201,-1067.79,0.00013741,2]
[337228942,1725514232211,-1067.79,0.00013744,2]
[337228943,1725514232221,-150.0,0.00013748,2]
[337228944,1725514232230,-1067.79,0.00013748,2]
[337228945,1725514232240,-1067.79,0.00013752,2]
[337228946,1725514232250,-1067.79,0.00013755,2]
[337228947,1725514232260,-1067.79,0.00013759,2]
[337228948,1725514232269,-1067.79,0.00013763,2]
[337228949,1725514232278,-1067.79,0.00013766,2]
[337228950,1725514232287,-1067.79,0.0001377,2]
[337228951,1725514232297,-205.94,0.00013833,2]
[337228952,1725514232308,-400.0,0.000139,5]
[337228953,1725514232317,-30179.44837191,0.00014,4]
[337228954,1725514232327,-900.0,0.00014,5]
[337228955,1725514232336,-1300.0,0.000141,5]
[337228956,1725514232345,-1800.0,0.000142,5]
[337228957,1725514232354,-2300.0,0.000143,5]
[337228958,1725514232362,-400.0,0.000144,5]
[337228959,1725514232371,-400.0,0.000145,5]
[337228960,1725514232381,-400.0,0.000146,5]
[337228961,1725514232390,-363.82,0.00014608,2]
[337228962,1725514232399,-2232.2437,0.000147,2]
[337228963,1725514232407,-222.0,0.000147,2]
[337228964,1725514232418,-400.0,0.000147,5]
[337228965,1725514232426,-1970.09682178,0.000147,2]
[337228966,1725514232435,-1970.09682174,0.00014722,2]
[337228967,1725514232444,-1970.09682174,0.00014744,2]
[337228968,1725514232453,-14576.47248075,0.00014757,2]
[337228969,1725514232462,-1970.09682174,0.00014767,2]
[337228970,1725514232471,-152.0,0.00014769,3]
[337228971,1725514232479,-1970.09682174,0.00014789,2]
[337228972,1725514232488,-150.0,0.00014794,2]
[337228973,1725514232497,-500.0,0.00014799,2]
[337228974,1725514232506,-324.12840728,0.00014799,2]
[337228975,1725514232515,-471.58178596,0.00014799,2]
[337228976,1725514232524,-100000.0,0.000148,2]
[337228977,1725514232533,-36298.2514,0.000148,2]
[337228978,1725514232542,-23592.6293,0.000148,2]
[337228979,1725514232552,-153.28569643,0.000148,2]
[337228980,1725514232560,-172.17551893,0.000148,2]
[337228981,1725514232569,-399.1088984,0.000148,2]
[337228982,1725514232579,-1000.0,0.000148,5]
[337228983,1725514232587,-1970.09682174,0.00014811,2]
[337228984,1725514232596,-1970.09682174,0.00014833,2]
[337228985,1725514232606,-500.0,0.0001485,2]
[337228986,1725514232615,-1970.09682174,0.00014856,2]
[337228987,1725514232624,-672.06,0.00014856,2]
[337228988,1725514232634,-255.0,0.00014862,2]
[337228989,1725514232643,-1970.09682174,0.00014878,2]
[337228990,1725514232652,-97513.49691447,0.0001488,2]
[337228991,1725514232662,-2595.00959254,0.0001488,3]
[337228992,1725514232673,-28545.1055179,0.0001489,3]
[337228993,1725514232684,-151.64,0.0001489,2]
[337228994,1725514232694,-151.64,0.0001489,2]
[337228995,1725514232704,-500.0,0.00014899,2]
[337228996,1725514232713,-500.0,0.00014899,2]
[337228997,1725514232722,-500.0,0.00014899,2]
[337228998,1725514232731,-500.0,0.00014899,2]
[337228999,1725514232741,-796.96,0.00014899,2]
[337229000,1725514232752,-796.96,0.00014899,2]
[337229001,1725514232763,-796.96,0.00014899,2]
[337229002,1725514232773,-796.96,0.00014899,2]
[337229003,1725514232784,-500.0,0.000149,2]
[337229004,1725514232794,-29584.38604533,0.000149,5]
[337229005,1725514232807,-256.0,0.000149,5]
[337229006,1725514232819,-15739.85359747,0.000149,5]
[337229007,1725514232831,-493.5770007,0.000149,5]
[337229008,1725514232843,-264.82796935,0.000149,5]
[337229009,1725514232863,-2975.40369215,0.000149,5]
[337229010,1725514232875,-3826.9705267,0.000149,5]
[337229011,1725514232891,-334.56848404,0.000149,5]
[337229012,1725514232905,-4756.47323695,0.000149,5]
[337229013,1725514232916,-811.05669613,0.000149,5]
[337229014,1725514232927,-15432.30506371,0.000149,5]
[337229015,1725514232940,-12552.98142732,0.000149,5]
[337229016,1725514232951,-909.3594811,0.000149,5]
[337229017,1725514232962,-3345.75418598,0.000149,5]
[337229018,1725514232976,-1705.7776,0.000149,5]
[337229019,1725514232990,-1198.16775,0.000149,5]
[337229020,1725514233002,-918.87231146,0.000149,5]
[337229021,1725514233012,-1777.48768149,0.000149,5]
[337229022,1725514233024,-3700.0,0.000149,5]
[337229023,1725514233035,-712.8352503,0.000149,5]
[337229024,1725514233046,-423.03210488,0.000149,5]
[337229025,1725514233057,-13301.4081257,0.000149,5]
[337229026,1725514233069,-300.0,0.000149,5]
[337229027,1725514233080,-577.08950482,0.000149,5]
[337229028,1725514233093,-1670.90790627,0.000149,5]
[337229029,1725514233104,-1757.76879465,0.000149,5]
[337229030,1725514233120,-13115.76460994,0.000149,5]
[337229031,1725514233159,-3869.0471706,0.000149,5]
[337229032,1725514233170,-404.0,0.000149,5]
[337229033,1725514233189,-349.70936002,0.000149,5]
[337229034,1725514233199,-592.78,0.000149,5]
[337229038,1725514238025,-250.0,0.00013368,2]
[337229039,1725514238035,-469.45,0.000149,5]
[337229040,1725514238084,-326.45,0.000149,5]
[337229041,1725514238096,-7348.10720825,0.000149,5]
[337229042,1725514238107,-666.4,0.000149,5]
[337229043,1725514238118,-542.99403541,0.000149,5]
[337229044,1725514238129,-288.35902881,0.000149,5]
[337229045,1725514238153,-443.13092382,0.000149,5]
[337229046,1725514238163,-54424.44962291,0.000149,5]
[337229047,1725514238174,-300.001004,0.000149,5]
[337229048,1725514238185,-1100.67125844,0.000149,5]
[337229049,1725514238211,-784.64182838,0.000149,5]
[337229050,1725514238223,-4359.03,0.000149,5]
[337229051,1725514238271,-750090.07951292,0.000149,5]
[337229052,1725514238280,-712.0,0.000149,2]
[337229053,1725514238290,-172.17551893,0.000149,2]
[337229054,1725514238299,-1959.0,0.000149,2]
[337229055,1725514238308,-1970.09682174,0.000149,2]
[337229056,1725514238317,-2401.32785702,0.000149,2]
[337229057,1725514238326,-158.817,0.00014934,2]
[337229058,1725514238335,-500.0,0.00014973,2]
[337229059,1725514238343,-331.68886943,0.00014973,2]
[337229060,1725514238353,-500.0,0.00014989,2]
[337229061,1725514238362,-796.96,0.00014989,2]
[337229062,1725514238371,-151.64,0.0001499,2]
[337229063,1725514238380,-151.64,0.0001499,2]
[337229064,1725514238389,-151.64,0.0001499,2]
[337229065,1725514238398,-151.64,0.0001499,2]
[337229066,1725514238407,-151.64,0.0001499,2]
[337229067,1725514238416,-151.64,0.0001499,2]
[337229068,1725514238426,-151.64,0.0001499,2]
[337229069,1725514238435,-151.64,0.0001499,2]
[337229070,1725514238444,-151.64,0.0001499,2]
[337229071,1725514238453,-151.64,0.0001499,2]
[337229072,1725514238462,-151.64,0.0001499,2]
[337229073,1725514238471,-151.64,0.0001499,2]
[337229074,1725514238480,-151.64,0.0001499,2]
[337229075,1725514238489,-151.64,0.0001499,2]
[337229076,1725514238498,-151.64,0.0001499,2]
[337229077,1725514238507,-500.0,0.00014997,2]
[337229078,1725514238519,-669.24301424,0.00014998,2]
[337229079,1725514238528,-192.7022131,0.00014999,2]
[337229080,1725514238538,-500.0,0.00014999,2]
[337229081,1725514238547,-500.0,0.00014999,2]
[337229082,1725514238557,-500.0,0.00014999,2]
[337229083,1725514238567,-465.4,0.00014999,2]
[337229084,1725514238576,-796.96,0.00014999,2]
[337229085,1725514238586,-796.96,0.00014999,2]
[337229086,1725514238595,-796.96,0.00014999,2]
[337229087,1725514238604,-796.96,0.00014999,2]
[337229088,1725514238614,-796.96,0.00014999,2]
[337229089,1725514238624,-796.96,0.00014999,2]
[337229090,1725514238634,-796.96,0.00014999,2]
[337229091,1725514238645,-796.96,0.00014999,2]
[337229092,1725514238653,-796.96,0.00014999,2]
[337229093,1725514238662,-796.96,0.00014999,2]
[337229094,1725514238671,-796.96,0.00014999,2]
[337229095,1725514238682,-796.96,0.00014999,2]
[337229096,1725514238693,-796.96,0.00014999,2]
[337229097,1725514238702,-796.96,0.00014999,2]
[337229098,1725514238713,-796.96,0.00014999,2]
[337229099,1725514238723,-796.96,0.00014999,2]
[337229100,1725514238733,-796.96,0.00014999,2]
[337229101,1725514238743,-796.96,0.00014999,2]
[337229102,1725514238753,-797.19924985,0.00014999,2]
[337229103,1725514238764,-367336.08149709,0.00015,2]
[337229104,1725514238774,-6004484.20042443,0.00015,2]
[337229105,1725514238785,-1097267.82326971,0.00015,2]
[337229106,1725514238798,-1733.45721338,0.00015,2]
[337229107,1725514238810,-655.6964493,0.00015,2]
[337229108,1725514238821,-284.16954793,0.00015,2]
[337229109,1725514238831,-887.5,0.00015,2]
[337229110,1725514238863,-2510.72,0.00015,2]
[337229111,1725514238875,-1301.775,0.00015,2]
[337229112,1725514238886,-517.15912167,0.00015,2]
[337229113,1725514238903,-717.96206054,0.00015,2]
[337229114,1725514238914,-500.0,0.00015,2]
[337229115,1725514240054,-4608.07243216,0.00015,2]
[337229116,1725514240068,-376.955934,0.00015,2]
[337229117,1725514240153,-38.0768076,0.00015,2]
[337229118,1725514240164,-7701.58319048,0.00015,2]
[337229119,1725514240186,-463.24121394,0.000147,2]
[337229120,1725514240197,-230.65898606,0.000147,2]
[337229121,1725514240206,-413.42574072,0.00015,2]
[337229122,1725514240217,-1124.02077438,0.00015,2]
[337229123,1725514240227,-111742.50435818,0.00015,2]
[337229124,1725514240284,-1194.05,0.00015,2]
[337229125,1725514240343,-2926.4020911,0.00015,2]
[337229126,1725514240354,-777.28357529,0.00015,2]
[337229127,1725514240365,-1150.49924206,0.00015,2]
[337229128,1725514240376,-578.60900341,0.00015,2]
[337229129,1725514240403,-257.2739106,0.00015,2]
[337229130,1725514240418,-6102.1638032,0.00015,2]
[337229131,1725514240465,-1649.73530057,0.00015,2]
[337229132,1725514240478,-1729.84999999,0.00015,2]
[337229139,1725514242971,-24856.3089465,0.00015,2]
[337229141,1725514243081,-3641.17248839,0.00015,2]
[337229142,1725514243093,-931.13278959,0.00015,2]
[337229143,1725514243106,-1255.06367634,0.00015,2]
[337229144,1725514243140,-733.0,0.00015,2]
[337229145,1725514243151,-15.63230573,0.00015,2]
[337229146,1725514243164,-831.48450349,0.00015,2]
[337229147,1725514243176,-4783.44655774,0.00015,2]
[337229148,1725514243188,-2907.52125236,0.00015,2]
[337229149,1725514243213,-15164.0268957,0.00015,2]
[337229150,1725514243225,-715.36994382,0.00015,2]
[337229167,1725514243597,-653.44587086,0.00015,2]
[337229168,1725514243609,-1570.55517767,0.00015,2]
[337229169,1725514243621,-1599.08934919,0.00015,2]
[337229170,1725514243632,-873.04153788,0.00015,2]
[337229171,1725514243643,-985.07438389,0.00015,2]
[337229172,1725514243655,-455.37695136,0.00015,2]
[337229173,1725514243667,-286.93626806,0.00015,2]
[337229174,1725514243678,-471.58178596,0.00015,2]
[337229175,1725514243690,-324.95852096,0.00015,2]
[337229176,1725514243706,-427.18428536,0.00015,2]
[337229177,1725514243718,-537.88,0.00015,2]
[337229178,1725514243730,-768.44720034,0.00015,2]
[337229179,1725514243742,-1033516.92762393,0.00015,2]
[337229186,1725514246014,-1740.74654837,0.00015,2]
[337229187,1725514246026,-430.18684934,0.00015,2]
[337229188,1725514246039,-11753.76194839,0.00015,2]
[337229189,1725514246074,-3666.82998998,0.00015,2]
[337229190,1725514246086,-5143.26,0.00015,2]
[337229191,1725514246098,-609.53823585,0.00015,2]
[337229192,1725514246111,-474.70594152,0.00015,2]
[337229193,1725514246124,-2438.53564919,0.00015,2]
[337229194,1725514246137,-1000.54103258,0.00015,2]
[337229195,1725514246149,-2227.32105604,0.00015,2]
[337229196,1725514246166,-316.29539765,0.00015,2]
[337229197,1725514246197,-29900.94388131,0.00015,2]
[337229198,1725514246209,-553.56974129,0.00015,2]
[337229199,1725514246221,-458.27649239,0.00015,2]
[337229200,1725514246259,-1295.87497203,0.00015,2]
[337229201,1725514246271,-1580.85761632,0.00015,2]
[337229202,1725514246283,-1421.4756318,0.00015,2]
[337229203,1725514246327,-7533.79919372,0.00015,2]
[337229204,1725514246339,-4382.12539281,0.00015,2]
[337229205,1725514246352,-506.28464956,0.00015,2]
[337229206,1725514246364,-22015.21942346,0.00015,2]
[337229207,1725514246376,-12135.87654505,0.00015,2]
[337229208,1725514246388,-8924.9356803,0.00015,2]
[337229211,1725514301688,550.0,0.00011,2]
[337229212,1725514408406,500.0,0.0002611,120]
[337229213,1725514466865,2008.10557449,0.00027,120]
[337229214,1725514562311,529.41,0.00011839,2]
[337229215,1725514719855,165.69,0.00010959,2]
[337229216,1725515011232,500.0,0.00024988,120]
[337229217,1725515163884,502.93,0.00011467,2]
[337229227,1725515231798,548.37,0.00010959,2]
[337229228,1725515296500,-460.0,0.00015,30]
[337229229,1725515432139,-600.0,0.00013,2]
[337229230,1725515432149,-422.82,0.00013,2]
[337229231,1725515432158,-1682.67053353,0.00013004,2]
[337229232,1725515432199,-573.86,0.00013004,2]
[337229233,1725515432260,-3090.05946647,0.00013004,2]
[337229234,1725515432272,-186.66,0.00013181,2]
[337229235,1725515432282,-300.0,0.0001329,2]
[337229236,1725515432292,-250.0,0.00013291,2]
[337229237,1725515432302,-976.56778105,0.00013291,2]
[337229238,1725515432319,-3863.35555844,0.00013291,2]
[337229239,1725515432328,-435.16,0.00013295,2]
[337229240,1725515432340,-250.0,0.00013356,2]
[337229241,1725515432350,-250.0,0.00013364,2]
[337229242,1725515432359,-288.0,0.00013399,2]
[337229243,1725515432369,-14893.43,0.00013488,2]
[337229244,1725515432378,-150.0,0.00013534,2]
[337229245,1725515432387,-3916.49518674,0.00013688,2]
[337229246,1725515432396,-150.0,0.00013697,2]
[337229247,1725515432405,-41640.75,0.00013698,2]
[337229248,1725515432414,-499.99,0.00013699,2]
[337229249,1725515432423,-47840.23,0.00013699,2]
[337229250,1725515432432,-2530.38,0.00013699,2]
[337229251,1725515432442,-161.08,0.00013699,2]
[337229252,1725515432452,-502.93,0.0001373,2]
[337229253,1725515432461,-1000.0,0.00013787,2]
[337229254,1725515432470,-205.94,0.00013904,2]
[337229255,1725515432479,-186.68,0.00013915,2]
[337229256,1725515432488,-170.65,0.00013947,2]
[337229258,1725515432501,-1098.54,0.00014141,2]
[337229260,1725515432511,-427.41,0.00014192,2]
[337229261,1725515432520,-427.41,0.00014192,2]
[337229263,1725515432529,-427.41,0.00014192,2]
[337229265,1725515432539,-427.41,0.00014192,2]
[337229267,1725515432548,-427.41,0.00014192,2]
[337229269,1725515432558,-150.0,0.00014278,2]
[337229271,1725515432567,-427.41,0.00014278,2]
[337229273,1725515432576,-427.41,0.00014278,2]
[337229275,1725515432585,-6127.48373628,0.000145,2]
[337229277,1725515432594,-6127.48373621,0.00014544,2]
[337229279,1725515432603,-169.55178233,0.0001457,2]
[337229281,1725515432615,-250.44821767,0.0001457,2]
[337229283,1725515432625,-500.0,0.00014589,2]
[337229285,1725515432634,-331.69193966,0.00014589,2]
[337229287,1725515432643,-374.65039358,0.00014589,2]
[337229290,1725515432661,-5752.83334263,0.00014589,2]
[337229292,1725515432670,-13173.415,0.0001459,2]
[337229293,1725515432679,-581.34,0.0001459,3]
[337229295,1725515432688,-1613.8272,0.000146,2]
[337229297,1725515432697,-1682.2527,0.000146,2]
[337229299,1725515432706,-433.2501,0.000146,2]
[337229301,1725515432715,-2689.46393884,0.000146,2]
[337229303,1725515432726,-3050.21406116,0.000146,2]
[337229305,1725515432734,-296.0505,0.000146,2]
[337229306,1725515432743,-1474.6495,0.000146,2]
[337229308,1725515432752,-2500.0,0.000146,2]
[337229310,1725515432760,-345.36063455,0.000146,2]
[337229312,1725515432769,-338.17,0.00014618,2]
[337229314,1725515432778,-6127.48373621,0.00014633,2]
[337229316,1725515432787,-500.0,0.00014673,2]
[337229318,1725515432796,-246.98991996,0.00014673,2]
[337229319,1725515432805,-502.25331931,0.00014673,2]
[337229321,1725515432814,-6127.48373621,0.00014678,2]
[337229323,1725515432823,-11786.6630655,0.0001469,3]
[337229325,1725515432832,-1156.69,0.00014699,2]
[337229327,1725515432841,-500.0,0.000147,2]
[337229329,1725515432850,-633.8743,0.000147,2]
[337229331,1725515432859,-11837.18591736,0.000147,2]
[337229850,1725515438302,-5041.6,0.000147,2]
[337229853,1725515438315,-285.763033,0.000147,2]
[337229855,1725515438326,-700.54689836,0.000147,2]
[337229857,1725515438337,-2519.99852259,0.000147,2]
[337229860,1725515438360,-2510.72,0.000147,2]
[337229862,1725515438372,-8752.22233078,0.000147,2]
[337229864,1725515438391,-663.2,0.000147,2]
[337229866,1725515438402,-1915.14999999,0.000147,2]
[337229880,1725515438528,-210773.61329792,0.000147,2]
[337229882,1725515438537,-2927.1206,0.000147,2]
[337229884,1725515438546,-1018.00942401,0.000147,2]
[337229886,1725515438555,-1931.50350297,0.000147,2]
[337229888,1725515438565,-906.66638965,0.00014712,3]
[337229890,1725515438574,-6127.48373621,0.00014722,2]
[337229892,1725515438583,-150.0,0.00014727,2]
[337229894,1725515438592,-150.0,0.00014732,2]
[337229896,1725515438601,-150.0,0.00014751,2]
[337229898,1725515438610,-150.0,0.0001476,2]
[337229900,1725515438621,-6127.48373621,0.00014767,2]
[337229902,1725515438630,-150.0,0.00014775,2]
[337229904,1725515438639,-150.0,0.00014779,2]
[337229906,1725515438650,-150.0,0.00014796,2]
[337229908,1725515438659,-593.88801284,0.00014799,2]
[337229910,1725515438668,-500.0,0.00014799,2]
[337229912,1725515438677,-906.66638965,0.00014801,3]
[337229913,1725515438686,-6127.48373621,0.00014811,2]
[337229915,1725515438695,-255.0,0.0001482,2]
[337229917,1725515438704,-906.66638965,0.00014846,3]
[337229919,1725515438713,-1303.30565,0.0001485,2]
[337229921,1725515438722,-150.0,0.00014851,2]
[337229923,1725515438730,-6127.48373621,0.00014856,2]
[337229925,1725515438739,-150.0,0.00014858,2]
[337229927,1725515438748,-906.66638965,0.0001488,3]
[337229929,1725515438757,-906.66638965,0.00014882,3]
[337229931,1725515438766,-1156.69,0.00014889,2]
[337229933,1725515438775,-906.66638965,0.0001489,3]
[337229935,1725515438784,-1636.29981864,0.0001489,3]
[337229937,1725515438793,-5800.0,0.00014891,2]
[337229938,1725515438801,-150.0,0.00014892,2]
[337229940,1725515438811,-13724.8151,0.000149,2]
[337229942,1725515438820,-93363.2235,0.000149,2]
[337229944,1725515438829,-1000.0,0.000149,2]
[337229946,1725515438838,-496.2913,0.000149,2]
[337229948,1725515438847,-5800.0,0.000149,2]
[337229950,1725515438856,-1196.244857,0.000149,2]
[337229952,1725515438864,-5732.85274132,0.000149,2]
[337229954,1725515438875,-2236.73860892,0.000149,2]
[337229956,1725515438884,-6127.48373621,0.000149,2]
[337229958,1725515438893,-150.0,0.00014901,2]
[337229960,1725515438902,-150.0,0.00014908,2]
[337229962,1725515438911,-150.0,0.00014911,2]
[337229964,1725515438920,-150.0,0.00014915,2]
[337229966,1725515438928,-158.81746809,0.0001494,2]
[337229967,1725515438937,-150.0,0.00014944,2]
[337229969,1725515438946,-150.0,0.00014947,2]
[337229971,1725515438955,-150.0,0.00014951,2]
[337229973,1725515438964,-150.0,0.00014953,2]
[337229975,1725515438973,-1636.29981864,0.0001496,3]
[337229977,1725515438982,-150.0,0.00014964,2]
[337229979,1725515438991,-1636.29981864,0.00014969,3]
[337229981,1725515439000,-9817.79891184,0.0001497,3]
[337229983,1725515439009,-501.17200511,0.00014973,2]
[337229985,1725515439018,-500.0,0.00014973,2]
[337229987,1725515439026,-9817.79891184,0.0001498,3]
[337229989,1725515439034,-21271.8976423,0.0001498,3]
[337229991,1725515439043,-150.0,0.00014982,2]
[337229993,1725515439052,-1636.29981864,0.00014989,3]
[337229995,1725515439061,-1156.69,0.00014989,2]
[337229997,1725515439070,-209822.60657163,0.0001499,2]
[337229999,1725515439079,-15120.8761343,0.0001499,2]
[337230001,1725515439088,-15019.0923709,0.0001499,2]
[337230003,1725515439096,-10335.57026327,0.0001499,2]
[337230005,1725515439108,-4581.73834433,0.0001499,2]
[337230007,1725515439117,-14815.5248443,0.0001499,2]
[337230009,1725515439127,-14713.7410809,0.0001499,2]
[337230011,1725515439136,-630.0185485,0.0001499,2]
[337230013,1725515439144,-627.165181,0.0001499,2]
[337230015,1725515439153,-624.3118134,0.0001499,2]
[337230017,1725515439162,-621.4584459,0.0001499,2]
[337230018,1725515439171,-618.6050783,0.0001499,2]
[337230020,1725515439180,-1285.7617697,0.0001499,2]
[337230022,1725515439189,-1279.9385271,0.0001499,2]
[337230024,1725515439198,-1274.1152844,0.0001499,2]
[337230026,1725515439208,-1268.2920417,0.0001499,2]
[337230028,1725515439217,-1262.468799,0.0001499,2]
[337230030,1725515439226,-632.8719161,0.00014993,2]
[337230032,1725515439235,-1291.5850124,0.00014993,2]
[337230034,1725515439244,-192.70221311,0.00014999,2]
[337230036,1725515439254,-1156.69,0.00014999,2]
[337230038,1725515439264,-1156.69,0.00014999,2]
[337230041,1725515439275,-1156.69,0.00014999,2]
[337230043,1725515439285,-1156.69,0.00014999,2]
[337230044,1725515439294,-1156.69,0.00014999,2]
[337230047,1725515439304,-1156.69,0.00014999,2]
[337230049,1725515439314,-1156.69,0.00014999,2]
[337230050,1725515439323,-1156.69,0.00014999,2]
[337230053,1725515439332,-1156.69,0.00014999,2]
[337230054,1725515439342,-1156.69,0.00014999,2]
[337230057,1725515439354,-1156.69,0.00014999,2]
[337230059,1725515439363,-1156.69,0.00014999,2]
[337230061,1725515439374,-1156.69,0.00014999,2]
[337230063,1725515439383,-1156.69,0.00014999,2]
[337230065,1725515439393,-1156.69,0.00014999,2]
[337230067,1725515439402,-1156.69,0.00014999,2]
[337230069,1725515439412,-1156.69,0.00014999,2]
[337230071,1725515439423,-1156.69,0.00014999,2]
[337230073,1725515439433,-1156.69,0.00014999,2]
[337230075,1725515439443,-1156.69,0.00014999,2]
[337230077,1725515439454,-1156.76831884,0.00014999,2]
[337230079,1725515439464,-770.0,0.00014999,2]
[337230081,1725515439475,-396176.57261846,0.00015,2]
[337230083,1725515439484,-3348474.45099862,0.00015,2]
[337230085,1725515439496,-380.0,0.00015,2]
[337230088,1725515439508,-436.59312215,0.00015,2]
[337230090,1725515439520,-364.0,0.00015,2]
[337230092,1725515439530,-470.83343635,0.00015,2]
[337230094,1725515439540,-72851.66355887,0.00015,2]
[337230096,1725515439552,-140533.99345,0.00015,2]
[337230172,1725515440262,-3.24121394,0.00015,2]
[337230174,1725515440276,-397.63098387,0.00015,2]
[337230178,1725515440310,-706.04,0.00015,2]
[337230190,1725515440425,-85062.43088201,0.00015,2]
[337230192,1725515440436,-443.46600151,0.00015,2]
[337230194,1725515440447,-1233.8412728,0.00015,2]
[337230199,1725515440486,-370.12127459,0.00015,2]
[337230202,1725515440497,-4832.22556236,0.00015,2]
[337230204,1725515440508,-9920.5,0.00015,2]